bitfinex/quotes_SOLUSD_20240727
["timestamp","ask_amount","ask_price","bid_price","bid_amount"]
[1722105823074,14.35,182.57,182.55,5.4778]
[1722105823674,5.4764,182.6,182.56,5.4776]
[1722105823867,14.35,182.57,182.56,5.4776]
[1722105824072,14.35,182.58,182.56,5.4776]
[1722105824670,14.35,182.58,182.57,5.4773]
[1722105824874,14.35,182.59,182.57,5.4773]
[1722105825760,14.35,182.61,182.58,5.477]
[1722105826064,14.35,182.62,182.58,5.477]
[1722105826273,14.35,182.62,182.59,5.4766]
[1722105826758,14.35,182.62,182.58,5.4769]
[1722105826956,15.3648,182.64,182.58,5.4769]
[1722105827160,15.3648,182.64,182.54,14.35]
[1722105827476,14.35,182.62,182.55,34.35]
[1722105828253,14.35,182.62,182.59,5.4767]
[1722105828850,14.35,182.62,182.55,34.35]
[1722105829070,14.35,182.62,182.6,5.4764]
[1722105829366,14.35,182.61,182.57,5.477]
[1722105829571,14.35,182.6,182.55,1.56433311]
[1722105829771,14.35,182.57,182.55,5.4779]
[1722105829967,14.35,182.56,182.55,5.4779]
[1722105830462,14.35,182.61,182.55,5.4779]
[1722105830463,14.35,182.57,182.55,5.4779]
[1722105830657,14.35,182.59,182.51,36.5236]
[1722105830864,14.35,182.59,182.51,22.1736]
[1722105831071,28.58,182.62,182.52,20.0]
[1722105831259,45.0,182.61,182.52,20.0]
[1722105831573,16.2322,182.6,182.52,20.0]
[1722105831772,5.4778,182.56,182.51,5.479]
[1722105831974,5.4778,182.56,182.51,5.4789]
[1722105832168,5.4774,182.57,182.52,5.4788]
[1722105832368,5.477,182.58,182.47,22.0102]
[1722105832569,5.4768,182.59,182.54,5.4781]
[1722105832984,5.4771,182.58,182.54,5.4781]
[1722105833559,5.4771,182.58,182.53,5.4784]
[1722105834581,5.4771,182.58,182.54,5.4781]
[1722105836980,5.4767,182.59,182.54,5.4781]
[1722105837164,16.2322,182.6,182.56,5.4774]
[1722105838183,21.7087,182.6,182.56,5.4774]
[1722105839772,21.7087,182.6,182.55,5.4778]
[1722105839967,16.2322,182.6,182.53,5.4782]
[1722105840173,16.2322,182.6,182.51,5.4788]
[1722105840386,5.478,182.55,182.5,5.4793]
[1722105841390,5.4782,182.54,182.5,5.4793]
[1722105841586,73.58,182.59,182.43,5.68398657]
[1722105841893,73.58,182.59,182.43,7.24934868]
[1722105842086,73.58,182.59,182.43,8.3452543]
[1722105842398,5.4783,182.54,182.5,5.4794]
[1722105843500,5.4783,182.54,182.49,5.4796]
[1722105844294,5.478,182.55,182.5,5.4794]
[1722105845065,75.804174,182.59,182.5,5.4794]
[1722105845273,5.478,182.55,182.5,5.4794]
[1722105845771,5.4782,182.54,182.48,5.4797]
[1722105845971,5.4782,182.54,182.49,5.4796]
[1722105846481,5.4782,182.54,182.5,5.4794]
[1722105846685,5.4782,182.54,182.43,1.56536211]
[1722105846686,5.4794,182.5,182.44,5.481]
[1722105846868,6.1062,182.52,182.45,5.4809]
[1722105847201,6.1062,182.52,182.42,5.4816]
[1722105847202,5.4803,182.47,182.42,5.4816]
[1722105847375,5.4803,182.47,182.43,5.4815]
[1722105848185,21.7121,182.49,182.44,5.4812]
[1722105848484,16.2322,182.49,182.38,15.4741]
[1722105848685,5.4809,182.46,182.42,5.4817]
[1722105848889,5.4801,182.48,182.43,5.4815]
[1722105849192,5.4801,182.48,182.44,5.4811]
[1722105849590,21.712,182.49,182.44,5.4811]
[1722105851097,14.31,182.46,182.43,5.4814]
[1722105851474,14.31,182.46,182.45,5.4809]
[1722105852092,14.31,182.46,182.44,5.4812]
[1722105852299,14.31,182.47,182.44,5.4812]
[1722105852895,14.31,182.47,182.4,14.31]
[1722105853398,16.2322,182.49,182.4,14.31]
[1722105853597,14.31,182.49,182.46,5.4806]
[1722105854392,14.31,182.49,182.45,5.4808]
[1722105854597,14.31,182.5,182.46,5.4805]
[1722105854895,5.4792,182.51,182.46,5.4805]
[1722105855085,14.31,182.5,182.46,5.4805]
[1722105855285,19.7895,182.5,182.46,5.4805]
[1722105855698,14.31,182.5,182.47,5.4803]
[1722105856095,14.31,182.5,182.48,5.4799]
[1722105856284,5.4786,182.53,182.48,5.4799]
[1722105856599,14.31,182.52,182.49,5.4795]
[1722105856786,14.31,182.52,182.48,5.48]
[1722105857597,19.7888,182.52,182.48,5.48]
[1722105857899,19.7888,182.52,182.47,5.4802]
[1722105859388,19.7888,182.52,182.45,14.31]
[1722105859389,14.31,182.52,182.48,6.57581175]
[1722105860598,19.7888,182.52,182.48,5.4799]
[1722105861711,19.7888,182.52,182.47,5.4803]
[1722105865311,30.5763,182.54,182.48,1.09588913]
[1722105865485,16.2663,182.58,182.49,15.40573317]
[1722105865689,19.7877,182.56,182.51,5.479]
[1722105866106,14.31,182.55,182.51,5.479]
[1722105866809,19.788,182.55,182.51,5.479]
[1722105867014,19.788,182.55,182.5,5.4793]
[1722105867015,14.31,182.54,182.5,5.4793]
[1722105867316,14.31,182.54,182.51,5.479]
[1722105876121,14.31,182.55,182.51,5.479]
[1722105878604,14.31,182.54,182.51,5.479]
[1722105879421,16.2663,182.58,182.45,2.66086576]
[1722105879422,21.7435,182.58,182.48,14.31]
[1722105879631,14.31,182.55,182.49,65.0]
[1722105880008,14.31,182.54,182.52,5.4788]
[1722105882417,14.31,182.53,182.52,5.4788]
[1722105884012,14.31,182.53,182.5,5.4792]
[1722105884327,16.2663,182.58,182.49,5.4796]
[1722105884328,14.31,182.51,182.49,5.4796]
[1722105884533,14.31,182.51,182.43,20.03115123]
[1722105884534,14.31,182.5,182.48,5.48]
[1722105884828,5.4786,182.53,182.49,5.4797]
[1722105884829,14.31,182.51,182.49,5.4797]
[1722105886126,14.31,182.51,182.5,5.4794]
[1722105886329,14.31,182.52,182.51,5.4791]
[1722105886549,14.31,182.52,182.5,5.4793]
[1722105888036,16.2663,182.58,182.5,5.4793]
[1722105888037,5.478,182.55,182.5,5.4793]
[1722105888244,14.31,182.52,182.5,5.4793]
[1722105888928,16.2663,182.58,182.49,5.4797]
[1722105888929,14.31,182.51,182.49,5.4797]
[1722105889125,14.31,182.51,182.5,5.4794]
[1722105889517,14.31,182.51,182.49,5.4797]
[1722105889715,14.31,182.5,182.49,5.4797]
[1722105891122,14.31,182.51,182.5,5.4793]
[1722105892139,14.31,182.51,182.49,5.4796]
[1722105892320,14.31,182.5,182.49,5.4796]
[1722105895951,14.31,182.5,182.48,5.4799]
[1722105896144,14.31,182.49,182.48,5.4799]
[1722105896445,14.31,182.49,182.43,5.72115123]
[1722105896747,14.31,182.46,182.45,5.4808]
[1722105900365,14.31,182.46,182.34,22.6718]
[1722105900533,14.31,182.4,182.38,5.483]
[1722105900733,14.31,182.4,182.39,5.4827]
[1722105900946,14.31,182.41,182.4,5.4822]
[1722105901260,14.31,182.42,182.35,21.58970739]
[1722105901427,14.31,182.42,182.36,2.66242107]
[1722105901632,14.31,182.41,182.4,5.4824]
[1722105901852,14.31,182.42,182.4,5.4824]
[1722105902035,14.31,182.42,182.41,5.4821]
[1722105902737,21.1751,182.46,182.42,5.4818]
[1722105903057,14.31,182.43,182.42,5.4818]
[1722105903254,14.31,182.43,182.41,5.4821]
[1722105903754,14.31,182.43,182.4,5.4823]
[1722105904351,14.31,182.42,182.4,5.4823]
[1722105904554,14.31,182.42,182.39,5.4826]
[1722105905351,14.31,182.42,182.4,5.4824]
[1722105905550,14.31,182.42,182.36,1.56596298]
[1722105905748,14.31,182.42,182.36,21.56596298]
[1722105905940,14.31,182.4,182.39,5.4827]
[1722105906250,14.31,182.42,182.36,21.56596298]
[1722105906453,14.31,182.42,182.4,5.4824]
[1722105907531,14.31,182.42,182.39,5.4827]
[1722105907858,14.31,182.41,182.4,5.4824]
[1722105909156,14.31,182.42,182.41,5.4821]
[1722105911933,15.6945,182.46,182.36,2.66240785]
[1722105912138,14.31,182.43,182.42,5.4818]
[1722105912955,15.6945,182.46,182.37,1.09629456]
[1722105913163,15.283,182.5,182.46,5.4805]
[1722105913356,14.31,182.47,182.46,5.4805]
[1722105913566,14.31,182.47,182.45,5.4809]
[1722105913751,14.31,182.46,182.45,5.4809]
[1722105914062,14.31,182.46,182.43,5.4813]
[1722105914253,14.31,182.45,182.43,5.4813]
[1722105914658,5.48,182.48,182.44,5.4812]
[1722105914960,14.31,182.45,182.44,5.4812]
[1722105915474,14.31,182.45,182.38,1.56579125]
[1722105915649,14.31,182.43,182.38,66.56579125]
[1722105916067,14.31,182.45,182.38,80.87579125]
[1722105916367,14.31,182.47,182.4,14.31]
[1722105916546,14.31,182.46,182.39,15.87570541]
[1722105916749,14.31,182.46,182.45,5.4809]
[1722105917476,14.31,182.47,182.45,5.4809]
[1722105918246,14.31,182.46,182.4,20.0]
[1722105918477,15.283,182.5,182.39,1.56570541]
[1722105918478,14.31,182.44,182.39,1.56570541]
[1722105918650,14.31,182.44,182.39,1.53441647]
[1722105918855,14.31,182.45,182.44,5.4812]
[1722105920866,14.31,182.45,182.43,5.4815]
[1722105921077,5.4801,182.48,182.43,5.4815]
[1722105921078,14.31,182.44,182.43,5.4815]
[1722105921398,14.31,182.44,182.41,5.4818]
[1722105921756,14.31,182.44,182.42,5.4817]
[1722105922488,14.31,182.44,182.38,20.0]
[1722105922489,14.31,182.43,182.41,5.482]
[1722105922658,14.31,182.42,182.41,5.482]
[1722105923454,14.31,182.42,182.4,5.4823]
[1722105923658,14.31,182.41,182.4,5.4823]
[1722105930884,20.7642,182.44,182.34,14.31]
[1722105930885,14.31,182.43,182.36,14.31]
[1722105931286,14.31,182.42,182.35,14.31]
[1722105931485,15.283,182.44,182.36,20.0]
[1722105931486,14.31,182.41,182.36,20.0]
[1722105932070,14.31,182.43,182.42,5.4815]
[1722105932270,29.593,182.44,182.36,14.31]
[1722105932579,29.593,182.44,182.37,20.0]
[1722105932976,29.593,182.44,182.42,5.4817]
[1722105933484,14.31,182.44,182.42,5.4817]
[1722105933670,14.31,182.44,182.43,5.4815]
[1722105934076,14.31,182.45,182.43,5.4815]
[1722105934275,14.31,182.44,182.43,5.4815]
[1722105935681,14.31,182.44,182.34,1.56613474]
[1722105935869,14.31,182.39,182.38,5.483]
[1722105937381,14.31,182.4,182.39,5.4827]
[1722105941598,14.31,182.4,182.38,5.483]
[1722105941896,14.31,182.39,182.37,5.4832]
[1722105942207,20.7626,182.42,182.37,5.4832]
[1722105942374,5.4822,182.41,182.34,1.56613474]
[1722105942572,14.31,182.37,182.36,5.4834]
[1722105942887,14.31,182.4,182.39,5.4827]
[1722105944198,15.2807,182.42,182.4,5.4823]
[1722105944199,14.31,182.41,182.4,5.4823]
[1722105944881,14.31,182.41,182.39,5.4826]
[1722105945094,14.31,182.4,182.39,5.4826]
[1722105946482,14.31,182.4,182.34,1.56613474]
[1722105946787,14.31,182.4,182.37,5.4831]
[1722105946984,20.7627,182.42,182.37,5.4831]
[1722105946985,14.31,182.39,182.37,5.4831]
[1722105947792,14.31,182.39,182.38,5.483]
[1722105948302,14.31,182.39,182.37,5.4832]
[1722105948597,14.31,182.38,182.34,5.4841]
[1722105948798,14.31,182.36,182.35,5.4839]
[1722105954111,14.31,182.36,182.27,6.2885]
[1722105954112,14.31,182.36,182.33,5.4843]
[1722105954282,14.31,182.34,182.33,5.4843]
[1722105955201,14.31,182.36,182.29,14.31]
[1722105955512,15.2807,182.42,182.38,5.4828]
[1722105955513,14.31,182.39,182.38,5.4828]
[1722105958206,15.2807,182.42,182.39,5.4824]
[1722105958403,14.31,182.4,182.39,5.4824]
[1722105958808,14.31,182.4,182.37,5.483]
[1722105959386,14.31,182.4,182.3,45.0]
[1722105959387,15.2807,182.42,182.34,14.31]
[1722105959599,14.31,182.41,182.34,14.31]
[1722105960305,14.31,182.41,182.35,1.0965632]
[1722105960496,15.2807,182.42,182.34,14.31]
[1722105960497,14.31,182.4,182.38,5.483]
[1722105960697,14.31,182.4,182.39,5.4827]
[1722105960892,20.9745,182.47,182.39,1.09649518]
[1722105961094,15.494,182.47,182.4,14.31]
[1722105961409,15.494,182.47,182.46,5.4806]
[1722105961784,15.494,182.47,182.45,5.4808]
[1722105962392,14.31,182.48,182.44,5.4812]
[1722105962798,14.31,182.47,182.35,1.09615947]
[1722105963093,14.31,182.47,182.43,5.4814]
[1722105964111,14.31,182.45,182.42,5.4817]
[1722105964496,14.31,182.44,182.42,5.4817]
[1722105965311,14.31,182.43,182.42,5.4817]
[1722105965522,14.31,182.43,182.36,1.56596298]
[1722105965704,14.31,182.4,182.36,1.56596298]
[1722105966009,14.31,182.42,182.4,5.4824]
[1722105967511,14.31,182.42,182.39,5.4827]
[1722105967695,14.31,182.41,182.39,5.4827]
[1722105969905,14.31,182.4,182.39,5.4827]
[1722105970894,14.31,182.4,182.37,5.483]
[1722105971117,14.31,182.38,182.37,5.483]
[1722105971497,14.31,182.38,182.35,5.4839]
[1722105971703,63.5133,182.43,182.35,5.4839]
[1722105971704,14.31,182.36,182.35,5.4839]
[1722105972011,14.31,182.38,182.37,5.4833]
[1722105972211,6.2733,182.43,182.4,5.4823]
[1722105972402,14.31,182.42,182.4,5.4823]
[1722105973096,14.31,182.42,182.4,4.9823]
[1722105974018,14.31,182.42,182.39,5.4826]
[1722105974317,14.31,182.41,182.4,5.4823]
[1722105974495,14.31,182.41,182.39,5.4826]
[1722105974699,14.31,182.4,182.39,5.4826]
[1722105974896,14.31,182.4,182.3,5.71420138]
[1722105975109,14.31,182.36,182.34,5.4842]
[1722105975312,14.31,182.35,182.3,5.71420138]
[1722105975621,14.31,182.36,182.35,5.4839]
[1722105975796,63.5133,182.43,182.3,5.71420138]
[1722105975797,14.31,182.37,182.3,5.71420138]
[1722105975999,14.31,182.4,182.33,14.31]
[1722105976298,14.31,182.4,182.38,5.4829]
[1722105976497,14.31,182.39,182.37,5.4833]
[1722105977012,14.31,182.39,182.38,5.483]
[1722105977194,14.31,182.4,182.38,5.483]
[1722105977392,11.7548,182.43,182.38,5.483]
[1722105977616,14.31,182.41,182.39,5.4827]
[1722105977803,14.31,182.41,182.38,5.4829]
[1722105978125,14.31,182.41,182.39,5.4827]
[1722105978700,14.31,182.4,182.37,5.483]
[1722105979020,14.31,182.38,182.36,5.4836]
[1722105979324,14.31,182.38,182.35,5.4838]
[1722105979512,14.31,182.37,182.36,5.4836]
[1722105979709,14.31,182.39,182.37,5.4833]
[1722105980721,6.2733,182.43,182.38,5.483]
[1722105980895,5.4815,182.44,182.36,14.31]
[1722105981100,14.31,182.43,182.4,5.4822]
[1722105981421,14.31,182.44,182.4,5.4822]
[1722105981800,20.9749,182.45,182.4,5.4822]
[1722105982119,14.31,182.43,182.4,5.4822]
[1722105983118,15.494,182.45,182.42,5.4816]
[1722105983320,13.6981,182.51,182.41,14.31]
[1722105983321,15.1678,182.51,182.41,14.31]
[1722105983517,14.31,182.49,182.42,14.31]
[1722105983724,14.31,182.48,182.45,5.4808]
[1722105984630,14.31,182.48,182.44,5.4811]
[1722105984795,14.31,182.48,182.41,14.31]
[1722105984796,14.31,182.48,182.45,5.4809]
[1722105985424,14.31,182.48,182.44,5.4811]
[1722105985722,14.31,182.48,182.45,5.4809]
[1722105986621,14.31,182.48,182.44,5.4811]
[1722105989326,19.7901,182.48,182.44,5.4811]
[1722105991831,14.31,182.48,182.44,5.4811]
[1722105992212,14.31,182.47,182.44,5.4811]
[1722105992413,14.31,182.45,182.37,15.6266]
[1722105992715,14.31,182.4,182.33,15.0141]
[1722105992922,6.3698,182.46,182.33,16.58032064]
[1722105992923,15.5712,182.44,182.33,16.58032064]
[1722105993224,15.5712,182.44,182.42,5.4818]
[1722105993403,29.8812,182.44,182.41,5.482]
[1722105993608,29.8812,182.44,182.39,5.4824]
[1722105993609,14.31,182.43,182.39,5.4824]
[1722105993807,14.31,182.42,182.38,5.4829]
[1722105994029,14.31,182.41,182.38,5.4829]
[1722105994225,14.31,182.4,182.34,1.56613474]
[1722105994404,14.31,182.39,182.34,21.56613474]
[1722105994607,14.31,182.38,182.34,21.56613474]
[1722105994830,14.31,182.38,182.36,5.4834]
[1722105995129,14.31,182.39,182.37,5.4833]
[1722105995526,14.31,182.41,182.39,5.4827]
[1722105995825,14.31,182.41,182.34,35.87613474]
[1722105996025,14.31,182.4,182.34,21.56613474]
[1722105996410,14.31,182.4,182.38,5.4829]
[1722105996816,14.31,182.39,182.34,21.56613474]
[1722105997028,14.31,182.39,182.37,5.4831]
[1722105997636,14.31,182.39,182.38,5.483]
[1722105998022,15.5712,182.44,182.4,5.4824]
[1722105998223,14.31,182.41,182.4,5.4824]
[1722105999125,14.31,182.41,182.39,5.4826]
[1722105999337,14.31,182.4,182.39,5.4826]
[1722106001437,14.31,182.4,182.37,5.4831]
[1722106001732,14.31,182.38,182.37,5.4831]
[1722106003436,14.31,182.39,182.38,5.4828]
[1722106005120,14.31,182.39,182.34,1.56613474]
[1722106005121,15.5712,182.44,182.34,1.56613474]
[1722106005329,14.31,182.42,182.35,14.31]
[1722106005855,14.31,182.42,182.36,20.0]
[1722106006216,14.31,182.42,182.41,5.4821]
[1722106006845,15.5712,182.44,182.36,20.0]
[1722106007050,15.5712,182.44,182.41,5.4821]
[1722106007051,14.31,182.42,182.41,5.4821]
[1722106011220,15.5712,182.44,182.41,5.4821]
[1722106011422,14.31,182.43,182.41,5.4821]
[1722106011648,16.77790879,182.51,182.36,34.31]
[1722106011649,15.8413,182.49,182.38,14.31]
[1722106011839,15.8413,182.49,182.39,80.87570541]
[1722106012030,14.31,182.46,182.39,81.97188841]
[1722106012547,14.31,182.46,182.45,5.4809]
[1722106013252,14.31,182.46,182.44,5.4812]
[1722106013643,14.31,182.45,182.44,5.4812]
[1722106015453,14.31,182.45,182.43,5.4812]
[1722106015747,14.31,182.44,182.39,21.56570541]
[1722106015952,14.31,182.44,182.42,5.4816]
[1722106016149,14.31,182.43,182.42,5.4816]
[1722106017345,15.8413,182.49,182.4,1.09631916]
[1722106017547,15.8413,182.49,182.45,5.4809]
[1722106017768,15.8413,182.49,182.47,5.4802]
[1722106018458,15.8413,182.49,182.46,5.4805]
[1722106018628,14.31,182.47,182.46,5.4805]
[1722106020044,14.31,182.47,182.45,5.4809]
[1722106020236,14.31,182.46,182.4,45.0]
[1722106020455,21.3211,182.49,182.43,5.4814]
[1722106020456,14.31,182.44,182.43,5.4814]
[1722106020665,14.31,182.44,182.43,25.4814]
[1722106021161,14.31,182.44,182.43,5.4814]
[1722106022234,14.31,182.44,182.41,5.4818]
[1722106022433,5.4803,182.47,182.41,5.4821]
[1722106022434,14.31,182.42,182.41,5.4821]
[1722106026975,15.8413,182.49,182.39,1.56570541]
[1722106027267,14.31,182.46,182.45,5.4807]
[1722106027966,14.31,182.47,182.46,5.4805]
[1722106029686,15.8413,182.49,182.46,5.4805]
[1722106030045,14.31,182.48,182.41,14.31]
[1722106030243,14.31,182.48,182.47,5.4803]
[1722106030649,21.6254,182.53,182.43,1.09605055]
[1722106030966,14.31,182.48,182.47,5.4803]
[1722106031176,21.6254,182.53,182.43,45.0]
[1722106031341,14.31,182.52,182.51,5.4791]
[1722106033796,14.31,182.52,182.44,1.5652763]
[1722106033956,14.31,182.49,182.48,5.48]
[1722106034362,14.31,182.49,182.48,25.48]
[1722106034594,14.31,182.49,182.48,5.48]
[1722106034768,14.31,182.49,182.44,1.5652763]
[1722106034967,14.31,182.47,182.46,5.4804]
[1722106036961,14.31,182.52,182.48,5.48]
[1722106037209,14.31,182.49,182.48,5.48]
[1722106041860,29.56265856,182.57,182.52,5.4786]
[1722106042086,14.31,182.53,182.52,5.4786]
[1722106042291,14.31,182.53,182.44,2.66116138]
[1722106042292,14.31,182.53,182.49,5.4795]
[1722106042489,14.31,182.53,182.5,5.4793]
[1722106042667,14.31,182.51,182.5,5.4793]
[1722106043484,14.31,182.51,182.48,5.48]
[1722106043692,2.96090292,182.56,182.48,5.48]
[1722106043693,14.31,182.49,182.48,5.48]
[1722106045367,2.96090292,182.56,182.49,5.4797]
[1722106045368,5.4782,182.54,182.49,5.4797]
[1722106045567,14.31,182.5,182.47,5.48]
[1722106045788,14.31,182.5,182.44,1.5652763]
[1722106045789,14.31,182.48,182.44,1.5652763]
[1722106046087,14.31,182.48,182.39,5.72262005]
[1722106046088,14.31,182.52,182.47,5.4803]
[1722106046477,19.7888,182.52,182.47,5.4803]
[1722106047494,14.31,182.48,182.47,5.4803]
[1722106048089,62.7188,182.52,182.47,5.4803]
[1722106048273,57.24,182.52,182.48,5.4799]
[1722106048593,6.0903,182.53,182.49,5.4796]
[1722106048893,14.31,182.5,182.49,5.4796]
[1722106049113,14.31,182.5,182.48,5.4799]
[1722106049268,14.31,182.49,182.48,5.4799]
[1722106049474,14.31,182.49,182.47,5.4802]
[1722106049672,14.31,182.48,182.47,5.4802]
[1722106049876,57.24,182.52,182.49,5.4797]
[1722106050091,14.31,182.5,182.49,5.4797]
[1722106052687,14.31,182.5,182.42,14.31]
[1722106052879,14.31,182.49,182.43,65.0]
[1722106053208,14.31,182.49,182.48,5.4799]
[1722106053499,5.4779,182.55,182.44,1.5652763]
[1722106053704,14.31,182.51,182.45,1.0958127]
[1722106053903,14.31,182.52,182.51,5.4788]
[1722106057195,5.4777,182.56,182.51,5.4788]
[1722106057410,14.31,182.54,182.47,15.40573645]
[1722106057579,14.31,182.54,182.48,66.56493319]
[1722106057781,14.31,182.54,182.49,1.56484744]
[1722106058314,7.93815856,182.57,182.5,1.09561992]
[1722106058601,58.37163281,182.61,182.53,5.4785]
[1722106058810,14.31,182.54,182.53,5.4785]
[1722106059373,14.31,182.54,182.52,5.4787]
[1722106059574,14.31,182.53,182.51,5.479]
[1722106059785,14.31,182.52,182.5,1.56476169]
[1722106060094,58.37163281,182.61,182.5,1.56476169]
[1722106060095,14.31,182.51,182.5,27.04416169]
[1722106060491,14.31,182.52,182.51,5.4789]
[1722106061107,14.31,182.53,182.51,5.4789]
[1722106061404,14.31,182.52,182.51,5.4789]
[1722106061703,14.31,182.52,182.5,7.04406169]
[1722106061903,14.31,182.51,182.5,1.56476169]
[1722106062081,14.31,182.51,182.47,5.4801]
[1722106062280,14.31,182.48,182.47,5.4801]
[1722106063397,14.31,182.48,182.47,25.4801]
[1722106064690,14.31,182.48,182.45,5.4806]
[1722106064889,5.4797,182.5,182.46,5.4806]
[1722106065088,14.31,182.47,182.46,5.4806]
[1722106067389,14.31,182.47,182.44,1.09602722]
[1722106067701,14.31,182.45,182.44,25.4812]
[1722106067904,14.31,182.46,182.45,5.4807]
[1722106068400,57.24,182.52,182.48,5.4799]
[1722106068401,62.7189,182.52,182.48,5.4799]
[1722106068708,14.31,182.49,182.47,5.4802]
[1722106068914,14.31,182.48,182.47,5.4802]
[1722106069594,14.31,182.48,182.44,20.0]
[1722106069906,14.31,182.47,182.46,5.4804]
[1722106073403,14.31,182.48,182.47,5.4801]
[1722106073797,5.4789,182.52,182.48,5.4799]
[1722106074110,14.31,182.5,182.43,6.81906703]
[1722106074317,14.31,182.5,182.48,5.48]
[1722106077804,21.8163,182.55,182.44,71.82061436]
[1722106078011,14.31,182.51,182.5,5.4792]
[1722106078786,14.31,182.51,182.49,5.4796]
[1722106078989,14.31,182.5,182.48,5.4799]
[1722106079210,14.31,182.49,182.48,5.4799]
[1722106079419,14.31,182.49,182.45,1.56519051]
[1722106079585,14.31,182.48,182.47,5.4802]
[1722106079789,14.31,182.48,182.47,25.4802]
[1722106080794,14.31,182.48,182.47,5.4802]
[1722106081799,14.31,182.49,182.48,5.4798]
[1722106083999,14.31,182.49,182.47,5.4803]
[1722106084217,14.31,182.48,182.47,5.4803]
[1722106086817,14.31,182.49,182.48,5.48]
[1722106087411,16.3383,182.55,182.45,2.66111858]
[1722106087621,12.53400661,182.54,182.5,5.4791]
[1722106088297,18.01230661,182.54,182.5,5.4791]
[1722106088521,5.4785,182.53,182.49,5.4796]
[1722106088732,14.31,182.5,182.49,5.4796]
[1722106089610,14.31,182.5,182.45,1.56519051]
[1722106089611,5.4782,182.54,182.5,5.4793]
[1722106089927,14.31,182.51,182.5,5.4793]
[1722106090405,21.8162,182.55,182.5,5.4793]
[1722106090734,14.31,182.51,182.5,5.4793]
[1722106090895,21.8162,182.55,182.5,5.4793]
[1722106090896,14.31,182.52,182.5,5.4793]
[1722106091411,14.31,182.53,182.5,5.4793]
[1722106091921,21.8162,182.55,182.46,15.40578597]
[1722106091922,16.3383,182.55,182.46,15.40578597]
[1722106092137,14.31,182.54,182.52,5.4787]
[1722106092494,16.3383,182.55,182.52,5.4787]
[1722106092698,14.31,182.54,182.52,5.4787]
[1722106093125,14.31,182.54,182.47,1.56501896]
[1722106093424,14.31,182.53,182.47,1.56501896]
[1722106093632,14.31,182.53,182.47,66.56501896]
[1722106097633,14.31,182.5,182.48,5.48]
[1722106097808,14.31,182.5,182.49,20.0]
[1722106098334,14.31,182.51,182.49,25.4796]
[1722106099415,14.31,182.51,182.49,5.4796]
[1722106101139,14.31,182.5,182.48,5.48]
[1722106102519,14.31,182.5,182.49,5.4797]
[1722106106837,14.31,182.5,182.47,7.04511896]
[1722106107016,14.31,182.49,182.47,7.04511896]
[1722106107830,14.31,182.49,182.48,5.48]